fUST/lending_fUST_20250812
["ID","MTS","AMOUNT","RATE_DAILY","PERIOD"]
[378725081,1754992246652,-460.0,0.0001899,2]
[378725082,1754992246662,-966.07,0.0001899,2]
[378725083,1754992246671,-464.32070822,0.0001899,2]
[378725084,1754992246681,-460.0,0.0001899,2]
[378725085,1754992246691,-473.99,0.0001899,2]
[378725086,1754992246700,-460.0,0.0001899,2]
[378725087,1754992246709,-629.77,0.0001899,2]
[378725088,1754992246719,-460.0,0.0001899,2]
[378725089,1754992246729,-1410.64,0.0001899,2]
[378725090,1754992246738,-460.0,0.0001899,2]
[378725091,1754992246748,-460.0,0.0001899,2]
[378725092,1754992246757,-460.0,0.0001899,2]
[378725093,1754992246767,-364.24406746,0.0001899,2]
[378725094,1754992246776,-460.0,0.0001899,2]
[378725095,1754992246786,-460.0,0.0001899,2]
[378725097,1754992246795,-460.0,0.0001899,2]
[378725098,1754992246804,-583.61,0.0001899,2]
[378725099,1754992246813,-460.0,0.0001899,2]
[378725100,1754992246823,-460.0,0.0001899,2]
[378725101,1754992246833,-460.0,0.0001899,2]
[378725102,1754992246843,-460.0,0.0001899,2]
[378725103,1754992246862,-783.89,0.0001899,2]
[378725104,1754992246878,-460.0,0.0001899,2]
[378725105,1754992246887,-460.0,0.0001899,2]
[378725106,1754992246897,-460.0,0.0001899,2]
[378725107,1754992246907,-460.0,0.0001899,2]
[378725108,1754992246916,-460.0,0.0001899,2]
[378725109,1754992246926,-460.0,0.0001899,2]
[378725110,1754992246945,-460.0,0.0001899,2]
[378725111,1754992246954,-460.0,0.0001899,2]
[378725112,1754992246964,-2003.98,0.0001899,2]
[378725113,1754992246973,-460.0,0.0001899,2]
[378725114,1754992246982,-460.0,0.0001899,2]
[378725115,1754992246991,-460.0,0.0001899,2]
[378725116,1754992247000,-460.0,0.0001899,2]
[378725117,1754992247010,-460.0,0.0001899,2]
[378725118,1754992247019,-460.0,0.0001899,2]
[378725119,1754992247029,-460.0,0.0001899,2]
[378725120,1754992247038,-460.0,0.0001899,2]
[378725121,1754992247047,-460.0,0.0001899,2]
[378725122,1754992247056,-464.63,0.0001899,2]
[378725123,1754992247066,-460.0,0.0001899,2]
[378725124,1754992247075,-460.0,0.0001899,2]
[378725125,1754992247085,-460.0,0.0001899,2]
[378725126,1754992247094,-151.0,0.00019,2]
[378725127,1754992247104,-151.0,0.00019,2]
[378725128,1754992247113,-151.0,0.00019,2]
[378725129,1754992247123,-254.49316604,0.00019021,2]
[378725130,1754992247133,-1000.0,0.00019021,2]
[378725131,1754992247143,-5000.0,0.00019048,2]
[378725132,1754992247153,-4226.20645713,0.00019053,2]
[378725133,1754992247163,-500.56067958,0.00019057,2]
[378725134,1754992247172,-158.08822894,0.00019057,2]
[378725135,1754992247181,-500.0,0.00019057,2]
[378725136,1754992247191,-500.0,0.00019057,2]
[378725137,1754992247200,-500.41880227,0.00019057,2]
[378725138,1754992247210,-500.13962491,0.00019057,2]
[378725139,1754992247219,-500.0,0.00019057,2]
[378725140,1754992247228,-500.0,0.00019057,2]
[378725141,1754992247238,-500.0,0.00019057,2]
[378725142,1754992247247,-500.0,0.00019057,2]
[378725143,1754992247256,-500.0,0.00019057,2]
[378725144,1754992247266,-500.0,0.00019057,2]
[378725145,1754992247276,-183.0,0.00019057,2]
[378725146,1754992247285,-160.1817426,0.00019082,2]
[378725147,1754992247295,-500.0,0.00019082,2]
[378725148,1754992247304,-500.0,0.00019082,2]
[378725149,1754992247313,-500.0,0.00019082,2]
[378725150,1754992247322,-515.75468285,0.00019082,2]
[378725151,1754992247331,-516.60603465,0.00019082,2]
[378725152,1754992247340,-155.5848548,0.00019082,2]
[378725153,1754992247354,-341.1,0.00019087,2]
[378725154,1754992247364,-460.0,0.00019089,2]
[378725155,1754992247374,-302.84859387,0.00019089,2]
[378725156,1754992247385,-453.78881729,0.00019089,2]
[378725157,1754992247394,-151.0,0.000191,2]
[378725158,1754992247404,-151.0,0.000191,2]
[378725159,1754992247413,-151.0,0.000191,2]
[378725160,1754992247423,-500.0,0.00019102,2]
[378725161,1754992247432,-500.0,0.00019102,2]
[378725162,1754992247442,-500.0,0.00019102,2]
[378725163,1754992247453,-500.2933505,0.00019108,2]
[378725164,1754992247462,-503.33007518,0.00019108,2]
[378725165,1754992247471,-500.0,0.00019108,2]
[378725166,1754992247480,-500.0,0.00019108,2]
[378725167,1754992247490,-500.0,0.00019108,2]
[378725168,1754992247500,-500.0,0.00019108,2]
[378725169,1754992247509,-500.0,0.00019108,2]
[378725170,1754992247518,-500.0,0.00019108,2]
[378725171,1754992247527,-500.0,0.00019108,2]
[378725172,1754992247536,-420.18874009,0.00019108,2]
[378725173,1754992247545,-500.0,0.00019108,2]
[378725174,1754992247555,-500.0,0.00019108,2]
[378725175,1754992247568,-500.0,0.00019108,2]
[378725176,1754992247577,-183.0,0.00019115,2]
[378725177,1754992247586,-500.32990521,0.00019121,2]
[378725178,1754992247597,-500.0,0.00019122,2]
[378725179,1754992247648,-500.50974004,0.00019122,2]
[378725180,1754992247659,-500.0,0.00019122,2]
[378725181,1754992247668,-276.8535222,0.00019122,2]
[378725182,1754992247677,-500.0,0.00019122,2]
[378725183,1754992247687,-360.10275124,0.00019122,2]
[378725184,1754992247696,-500.0,0.00019122,2]
[378725185,1754992247705,-212.91207987,0.00019124,2]
[378725186,1754992247714,-500.0,0.00019124,2]
[378725187,1754992247723,-501.01799849,0.00019124,2]
[378725188,1754992247733,-160.0,0.00019127,3]
[378725189,1754992247743,-183.0,0.00019127,2]
[378725190,1754992247752,-500.0,0.00019142,2]
[378725191,1754992247761,-417.15472785,0.00019144,2]
[378725192,1754992247771,-160.0,0.00019144,2]
[378725193,1754992247780,-461.76100612,0.00019144,2]
[378725194,1754992247789,-216.70963917,0.00019144,2]
[378725195,1754992247799,-160.0,0.00019144,2]
[378725196,1754992247808,-160.0,0.00019144,2]
[378725197,1754992247817,-215.52532928,0.00019144,2]
[378725198,1754992247826,-160.0,0.00019144,2]
[378725199,1754992247835,-12673.43806534,0.00019144,2]
[378725200,1754992247843,-160.0,0.00019144,2]
[378725201,1754992247852,-528.03329096,0.00019144,2]
[378725202,1754992247861,-160.0,0.00019144,2]
[378725203,1754992247870,-843.25559725,0.00019144,2]
[378725204,1754992247879,-160.0,0.00019144,2]
[378725205,1754992247888,-232.0176383,0.00019144,2]
[378725206,1754992247898,-160.0,0.00019145,2]
[378725207,1754992247907,-160.0,0.00019145,2]
[378725208,1754992247916,-500.0,0.00019147,2]
[378725209,1754992247927,-500.0,0.00019147,2]
[378725210,1754992247936,-509.4840268,0.00019147,2]
[378725211,1754992247945,-500.0,0.00019147,2]
[378725212,1754992247954,-183.0,0.00019151,2]
[378725213,1754992247963,-470.96,0.00019152,2]
[378725214,1754992247972,-738.18,0.00019152,2]
[378725215,1754992247981,-946.42,0.00019152,2]
[378725216,1754992247990,-1956.63,0.00019152,2]
[378725217,1754992247999,-755.62,0.00019152,2]
[378725218,1754992248008,-3777.53,0.00019152,2]
[378725219,1754992248018,-460.0,0.00019152,2]
[378725220,1754992248027,-583.53,0.00019152,2]
[378725221,1754992248036,-460.0,0.00019152,2]
[378725222,1754992248045,-745.07,0.00019152,2]
[378725223,1754992248054,-474.38,0.00019153,2]
[378725224,1754992248064,-460.0,0.00019153,2]
[378725225,1754992248073,-576.82,0.00019153,2]
[378725226,1754992248083,-460.0,0.00019153,2]
[378725227,1754992248092,-460.0,0.00019153,2]
[378725228,1754992248102,-460.0,0.00019153,2]
[378725229,1754992248112,-593.0,0.00019153,2]
[378725230,1754992248121,-1928.68,0.00019153,2]
[378725231,1754992248131,-460.0,0.00019153,2]
[378725232,1754992248140,-460.0,0.00019153,2]
[378725233,1754992248149,-732.25,0.00019153,2]
[378725234,1754992248158,-460.0,0.00019153,2]
[378725235,1754992248167,-460.0,0.00019153,2]
[378725236,1754992248176,-3140.05,0.00019163,2]
[378725237,1754992248185,-674.52,0.00019163,2]
[378725238,1754992248195,-3629.73,0.00019163,2]
[378725239,1754992248205,-863.46,0.00019163,2]
[378725240,1754992248214,-1178.65,0.00019163,2]
[378725241,1754992248224,-460.0,0.00019163,2]
[378725242,1754992248234,-560.12,0.00019163,2]
[378725243,1754992248243,-1167.21,0.00019163,2]
[378725244,1754992248253,-1525.41,0.00019163,2]
[378725245,1754992248263,-467.65303007,0.00019163,2]
[378725246,1754992248273,-460.0,0.00019163,2]
[378725247,1754992248283,-460.0,0.00019163,2]
[378725248,1754992248293,-500.57319792,0.00019163,2]
[378725249,1754992248303,-500.0,0.00019164,2]
[378725250,1754992248313,-460.0,0.00019164,2]
[378725251,1754992248323,-460.0,0.00019164,2]
[378725252,1754992248333,-460.0,0.00019164,2]
[378725253,1754992248343,-781.08,0.00019164,2]
[378725254,1754992248353,-545.9,0.00019164,2]
[378725255,1754992248363,-172.93488013,0.00019164,2]
[378725256,1754992248372,-460.0,0.00019164,2]
[378725257,1754992248381,-460.0,0.00019164,2]
[378725258,1754992248391,-529.7,0.00019164,2]
[378725259,1754992248401,-460.0,0.00019164,2]
[378725260,1754992248410,-463.45,0.00019164,2]
[378725261,1754992248419,-464.22,0.00019164,2]
[378725262,1754992248429,-460.0,0.00019164,2]
[378725263,1754992248439,-845.87,0.00019164,2]
[378725264,1754992248448,-644.29,0.00019164,2]
[378725265,1754992248458,-460.0,0.00019164,2]
[378725266,1754992248467,-460.0,0.00019164,2]
[378725267,1754992248477,-460.0,0.00019164,2]
[378725268,1754992248487,-667.32,0.00019164,2]
[378725269,1754992248496,-460.0,0.00019164,2]
[378725270,1754992248505,-413.77943958,0.00019164,2]
[378725271,1754992248514,-460.0,0.00019164,2]
[378725272,1754992248524,-887.21,0.00019164,2]
[378725273,1754992248533,-517.15,0.00019164,2]
[378725274,1754992248542,-460.0,0.00019164,2]
[378725275,1754992248551,-805.53,0.00019164,2]
[378725276,1754992248562,-786.27,0.00019164,2]
[378725277,1754992248574,-460.0,0.00019164,2]
[378725278,1754992248583,-2472.28,0.00019164,2]
[378725279,1754992248592,-460.0,0.00019164,2]
[378725280,1754992248601,-1305.53,0.00019164,2]
[378725281,1754992248611,-460.0,0.00019164,2]
[378725282,1754992248620,-2701.41,0.00019164,2]
[378725283,1754992248630,-554.61,0.00019164,2]
[378725284,1754992248641,-674.52,0.00019164,2]
[378725285,1754992248651,-460.0,0.00019164,2]
[378725286,1754992248661,-460.0,0.00019164,2]
[378725287,1754992248670,-1122.98,0.00019164,2]
[378725288,1754992248680,-460.0,0.00019164,2]
[378725289,1754992248690,-558.21,0.00019164,2]
[378725290,1754992248699,-917.79,0.00019164,2]
[378725291,1754992248709,-1310.28,0.00019164,2]
[378725292,1754992248719,-460.0,0.00019164,2]
[378725293,1754992248728,-611.61,0.00019164,2]
[378725294,1754992248738,-3009.33,0.00019164,2]
[378725295,1754992248748,-8314.14,0.00019164,2]
[378725296,1754992248757,-460.0,0.00019164,2]
[378725297,1754992248767,-1604.91,0.00019164,2]
[378725298,1754992248776,-468.02075597,0.00019164,2]
[378725299,1754992248786,-460.0,0.00019164,2]
[378725300,1754992248795,-3693.73,0.00019164,2]
[378725301,1754992248804,-850.02,0.00019164,2]
[378725302,1754992248813,-460.0,0.00019164,2]
[378725303,1754992248822,-460.0,0.00019164,2]
[378725304,1754992248832,-4258.17,0.00019164,2]
[378725305,1754992248842,-460.0,0.00019164,2]
[378725306,1754992248851,-460.0,0.00019164,2]
[378725307,1754992248860,-3252.83,0.00019164,2]
[378725308,1754992248869,-712.98,0.00019164,2]
[378725309,1754992248878,-890.76,0.00019164,2]
[378725310,1754992248888,-460.0,0.00019164,2]
[378725311,1754992248898,-460.0,0.00019164,2]
[378725312,1754992248907,-482.95329193,0.00019164,2]
[378725313,1754992248916,-460.0,0.00019164,2]
[378725314,1754992248926,-460.0,0.00019164,2]
[378725315,1754992248935,-1738.13,0.00019164,2]
[378725316,1754992248944,-489.60462899,0.00019164,2]
[378725317,1754992248953,-1235.52,0.00019164,2]
[378725318,1754992248963,-2148.72,0.00019164,2]
[378725319,1754992248972,-1023.9,0.00019164,2]
[378725320,1754992248981,-1293.26,0.00019164,2]
[378725321,1754992248990,-151.0,0.00019178,2]
[378725322,1754992248999,-666.0,0.00019178,2]
[378725323,1754992249008,-500.0,0.00019181,2]
[378725324,1754992249018,-500.0,0.00019181,2]
[378725325,1754992249027,-500.80613502,0.00019181,2]
[378725326,1754992249036,-500.0,0.00019181,2]
[378725327,1754992249045,-500.0,0.00019181,2]
[378725328,1754992249054,-500.0,0.00019181,2]
[378725329,1754992249063,-501.2477495,0.00019182,2]
[378725330,1754992249072,-151.0,0.000192,2]
[378725331,1754992249081,-258.22936594,0.00019233,2]
[378725332,1754992249090,-2151.0,0.00019239,2]
[378725333,1754992249099,-636.0,0.00019239,2]
[378725334,1754992249109,-971.0,0.00019239,2]
[378725335,1754992249118,-150.0,0.00019239,2]
[378725336,1754992249128,-460.0,0.00019264,2]
[378725337,1754992249137,-460.0,0.00019264,2]
[378725338,1754992249147,-1216.97,0.00019264,2]
[378725339,1754992249156,-460.0,0.00019264,2]
[378725340,1754992249164,-460.0,0.00019264,2]
[378725341,1754992249173,-460.0,0.00019264,2]
[378725342,1754992249183,-602.77,0.00019264,2]
[378725343,1754992249192,-460.0,0.00019264,2]
[378725344,1754992249201,-460.0,0.00019264,2]
[378725345,1754992249211,-460.0,0.00019264,2]
[378725346,1754992249220,-460.0,0.00019264,2]
[378725347,1754992249230,-516.48,0.00019264,2]
[378725348,1754992249239,-526.52004035,0.00019264,2]
[378725349,1754992249249,-460.0,0.00019264,2]
[378725350,1754992249258,-460.0,0.00019264,2]
[378725351,1754992249268,-508.62,0.00019264,2]
[378725352,1754992249277,-632.09,0.00019264,2]
[378725353,1754992249287,-460.0,0.00019264,2]
[378725354,1754992249296,-460.0,0.00019264,2]
[378725355,1754992249305,-460.0,0.00019264,2]
[378725356,1754992249315,-460.0,0.00019264,2]
[378725357,1754992249324,-460.0,0.00019264,2]
[378725358,1754992249334,-617.77,0.00019264,2]
[378725359,1754992249343,-460.0,0.00019264,2]
[378725360,1754992249353,-201.73255172,0.00019264,2]
[378725361,1754992249362,-557.12,0.00019264,2]
[378725362,1754992249372,-667.12,0.00019264,2]
[378725363,1754992249382,-605.38097869,0.00019264,2]
[378725364,1754992249391,-460.0,0.00019264,2]
[378725365,1754992249401,-500.32,0.00019264,2]
[378725366,1754992249411,-1470.97,0.00019264,2]
[378725367,1754992249421,-460.0,0.00019264,2]
[378725368,1754992249431,-494.71,0.00019264,2]
[378725369,1754992249440,-460.0,0.00019264,2]
[378725370,1754992249449,-460.0,0.00019264,2]
[378725371,1754992249459,-460.0,0.00019264,2]
[378725372,1754992249468,-268.36645022,0.00019264,2]
[378725373,1754992249478,-460.0,0.00019264,2]
[378725374,1754992249487,-460.0,0.00019264,2]
[378725375,1754992249497,-460.0,0.00019264,2]
[378725376,1754992249507,-460.0,0.00019264,2]
[378725377,1754992249518,-868.45,0.00019264,2]
[378725378,1754992249527,-460.0,0.00019264,2]
[378725379,1754992249537,-460.0,0.00019264,2]
[378725380,1754992249547,-432.23355846,0.00019264,2]
[378725381,1754992249556,-432.22338106,0.00019264,2]
[378725382,1754992249569,-460.0,0.00019264,2]
[378725383,1754992249579,-581.5,0.00019264,2]
[378725384,1754992249589,-460.0,0.00019264,2]
[378725385,1754992249599,-460.0,0.00019264,2]
[378725386,1754992249610,-460.0,0.00019264,2]
[378725387,1754992249619,-460.0,0.00019264,2]
[378725388,1754992249629,-460.0,0.00019264,2]
[378725389,1754992249640,-460.0,0.00019264,2]
[378725390,1754992249650,-468.98016125,0.00019264,2]
[378725391,1754992249660,-591.24134132,0.00019264,2]
[378725392,1754992249669,-460.0,0.00019264,2]
[378725393,1754992249680,-460.0,0.00019264,2]
[378725394,1754992249691,-514.43388959,0.00019264,2]
[378725395,1754992249701,-482.25842071,0.00019264,2]
[378725396,1754992249716,-460.0,0.00019264,2]
[378725397,1754992249725,-467.8041622,0.00019264,2]
[378725398,1754992249735,-460.0,0.00019264,2]
[378725399,1754992249745,-460.0,0.00019264,2]
[378725400,1754992249755,-460.0,0.00019264,2]
[378725401,1754992249764,-460.0,0.00019264,2]
[378725402,1754992249773,-476.55,0.00019264,2]
[378725403,1754992249783,-460.0,0.00019264,2]
[378725404,1754992249792,-791.25,0.00019264,2]
[378725405,1754992249802,-460.0,0.00019264,2]
[378725406,1754992249811,-460.0,0.00019264,2]
[378725407,1754992249821,-966.07,0.00019264,2]
[378725408,1754992249830,-382.68462221,0.00019264,2]
[378725409,1754992249840,-473.99,0.00019264,2]
[378725410,1754992249850,-460.0,0.00019264,2]
[378725411,1754992249859,-629.77,0.00019264,2]
[378725412,1754992249870,-463.66198058,0.00019264,2]
[378725413,1754992249879,-1410.64,0.00019264,2]
[378725414,1754992249889,-460.0,0.00019264,2]
[378725415,1754992249899,-460.0,0.00019264,2]
[378725416,1754992249909,-467.25878383,0.00019264,2]
[378725417,1754992249918,-460.0,0.00019264,2]
[378725418,1754992249928,-460.0,0.00019264,2]
[378725419,1754992249937,-460.0,0.00019264,2]
[378725420,1754992249947,-583.61,0.00019264,2]
[378725421,1754992249957,-460.0,0.00019264,2]
[378725422,1754992249967,-460.0,0.00019264,2]
[378725423,1754992249976,-460.0,0.00019264,2]
[378725424,1754992249985,-460.0,0.00019264,2]
[378725425,1754992249995,-783.89,0.00019264,2]
[378725426,1754992250005,-460.0,0.00019264,2]
[378725427,1754992250014,-460.0,0.00019264,2]
[378725428,1754992250023,-513.28599369,0.00019264,2]
[378725429,1754992250032,-460.0,0.00019264,2]
[378725430,1754992250041,-460.0,0.00019264,2]
[378725431,1754992250051,-460.0,0.00019264,2]
[378725432,1754992250060,-460.0,0.00019264,2]
[378725433,1754992250070,-2003.98,0.00019264,2]
[378725434,1754992250079,-460.0,0.00019264,2]
[378725435,1754992250088,-460.0,0.00019264,2]
[378725436,1754992250098,-460.0,0.00019264,2]
[378725437,1754992250107,-460.0,0.00019264,2]
[378725438,1754992250117,-460.0,0.00019264,2]
[378725439,1754992250127,-460.0,0.00019264,2]
[378725440,1754992250137,-460.0,0.00019264,2]
[378725441,1754992250146,-460.0,0.00019264,2]
[378725442,1754992250155,-460.0,0.00019264,2]
[378725443,1754992250165,-464.63,0.00019264,2]
[378725444,1754992250176,-460.0,0.00019264,2]
[378725445,1754992250186,-460.0,0.00019264,2]
[378725446,1754992250200,-484.3725857,0.00019264,2]
[378725447,1754992250211,-302.84859387,0.00019278,2]
[378725448,1754992250221,-151.0,0.000193,2]
[378725449,1754992250231,-500.0,0.00019306,2]
[378725450,1754992250243,-78590.78570055,0.00019329,2]
[378725451,1754992250252,-341.1,0.00019348,2]
[378725452,1754992250262,-183.0,0.00019361,2]
[378725453,1754992250272,-151.0,0.00019365,2]
[378725454,1754992250281,-151.0,0.00019365,2]
[378725455,1754992250291,-183.0,0.00019365,2]
[378725456,1754992250300,-151.0,0.000194,2]
[378725457,1754992250310,-470.96,0.00019426,2]
[378725458,1754992250319,-738.18,0.00019426,2]
[378725459,1754992250329,-946.42,0.00019426,2]
[378725460,1754992250338,-1956.63,0.00019426,2]
[378725461,1754992250348,-755.62,0.00019426,2]
[378725462,1754992250357,-3777.53,0.00019426,2]
[378725463,1754992250366,-460.0,0.00019426,2]
[378725464,1754992250376,-229.956323,0.00019426,2]
[378725465,1754992250385,-151.0,0.00019426,2]
[378725466,1754992250395,-583.53,0.00019426,2]
[378725467,1754992250405,-460.0,0.00019426,2]
[378725468,1754992250414,-745.07,0.00019426,2]
[378725469,1754992250424,-474.38,0.00019427,2]
[378725470,1754992250433,-460.0,0.00019427,2]
[378725471,1754992250443,-576.82,0.00019427,2]
[378725472,1754992250452,-460.0,0.00019427,2]
[378725473,1754992250462,-460.0,0.00019427,2]
[378725474,1754992250471,-460.0,0.00019427,2]
[378725475,1754992250481,-593.0,0.00019427,2]
[378725476,1754992250491,-1928.68,0.00019427,2]
[378725477,1754992250500,-460.0,0.00019427,2]
[378725478,1754992250510,-732.25,0.00019427,2]
[378725479,1754992250519,-460.0,0.00019427,2]
[378725480,1754992250529,-460.0,0.00019427,2]
[378725481,1754992250538,-3140.05,0.00019437,2]
[378725482,1754992250547,-674.52,0.00019437,2]
[378725483,1754992250557,-3629.73,0.00019437,2]
[378725484,1754992250570,-151.0,0.00019437,2]
[378725485,1754992250579,-151.0,0.00019437,2]
[378725486,1754992250589,-863.46,0.00019437,2]
[378725487,1754992250598,-1178.65,0.00019437,2]
[378725488,1754992250608,-152.283643,0.00019437,2]
[378725489,1754992250618,-151.0,0.00019437,2]
[378725490,1754992250627,-460.0,0.00019437,2]
[378725491,1754992250638,-560.12,0.00019437,2]
[378725492,1754992250648,-1167.21,0.00019437,2]
[378725493,1754992250658,-1525.41,0.00019437,2]
[378725494,1754992250668,-2765.637727,0.00019437,2]
[378725495,1754992250678,-151.0,0.00019437,2]
[378725496,1754992250688,-2765.637727,0.00019437,2]
[378725497,1754992250697,-460.0,0.00019437,2]
[378725498,1754992250706,-460.0,0.00019437,2]
[378725499,1754992250716,-506.25103804,0.00019438,2]
[378725500,1754992250726,-460.0,0.00019438,2]
[378725501,1754992250736,-460.0,0.00019438,2]
[378725502,1754992250745,-460.0,0.00019438,2]
[378725503,1754992250755,-781.08,0.00019438,2]
[378725504,1754992250764,-545.9,0.00019438,2]
[378725505,1754992250774,-460.0,0.00019438,2]
[378725506,1754992250784,-460.0,0.00019438,2]
[378725507,1754992250793,-529.7,0.00019438,2]
[378725508,1754992250803,-460.0,0.00019438,2]
[378725509,1754992250813,-463.45,0.00019438,2]
[378725510,1754992250823,-464.22,0.00019438,2]
[378725511,1754992250833,-460.0,0.00019438,2]
[378725512,1754992250844,-845.87,0.00019438,2]
[378725513,1754992250854,-644.29,0.00019438,2]
[378725514,1754992250863,-460.0,0.00019438,2]
[378725515,1754992250873,-517.22009665,0.00019438,2]
[378725516,1754992250882,-151.0,0.00019438,2]
[378725517,1754992250892,-460.0,0.00019438,2]
[378725518,1754992250901,-667.32,0.00019438,2]
[378725519,1754992250911,-460.0,0.00019438,2]
[378725520,1754992250920,-460.0,0.00019438,2]
[378725521,1754992250929,-887.21,0.00019438,2]
[378725522,1754992250939,-517.15,0.00019438,2]
[378725523,1754992250948,-151.0,0.00019438,2]
[378725524,1754992250958,-460.0,0.00019438,2]
[378725525,1754992250967,-805.53,0.00019438,2]
[378725526,1754992250976,-151.0,0.00019438,2]
[378725527,1754992250986,-786.27,0.00019438,2]
[378725528,1754992250995,-460.0,0.00019438,2]
[378725529,1754992251004,-2472.28,0.00019438,2]
[378725530,1754992251014,-460.0,0.00019438,2]
[378725531,1754992251023,-1305.53,0.00019438,2]
[378725532,1754992251033,-460.0,0.00019438,2]
[378725533,1754992251042,-2701.41,0.00019438,2]
[378725534,1754992251051,-554.61,0.00019438,2]
[378725535,1754992251061,-674.52,0.00019438,2]
[378725536,1754992251071,-460.0,0.00019438,2]
[378725537,1754992251080,-460.0,0.00019438,2]
[378725538,1754992251089,-460.0,0.00019438,2]
[378725539,1754992251099,-558.21,0.00019438,2]
[378725540,1754992251108,-1122.98,0.00019438,2]
[378725541,1754992251118,-917.79,0.00019438,2]
[378725542,1754992251127,-1310.28,0.00019438,2]
[378725543,1754992251136,-460.0,0.00019438,2]
[378725544,1754992251145,-611.61,0.00019438,2]
[378725545,1754992251155,-3009.33,0.00019438,2]
[378725546,1754992251164,-8314.14,0.00019438,2]
[378725547,1754992251173,-460.0,0.00019438,2]
[378725548,1754992251182,-1604.91,0.00019438,2]
[378725549,1754992251192,-460.0,0.00019438,2]
[378725550,1754992251201,-3693.73,0.00019438,2]
[378725551,1754992251211,-850.02,0.00019438,2]
[378725552,1754992251220,-460.0,0.00019438,2]
[378725553,1754992251231,-460.0,0.00019438,2]
[378725554,1754992251240,-4258.17,0.00019438,2]
[378725555,1754992251250,-460.0,0.00019438,2]
[378725556,1754992251259,-460.0,0.00019438,2]
[378725557,1754992251268,-3252.83,0.00019438,2]
[378725558,1754992251278,-712.98,0.00019438,2]
[378725559,1754992251287,-890.76,0.00019438,2]
[378725560,1754992251296,-460.0,0.00019438,2]
[378725561,1754992251306,-460.0,0.00019438,2]
[378725562,1754992251315,-460.0,0.00019438,2]
[378725563,1754992251325,-460.0,0.00019438,2]
[378725564,1754992251334,-1738.13,0.00019438,2]
[378725565,1754992251344,-1235.52,0.00019438,2]
[378725566,1754992251353,-2148.72,0.00019438,2]
[378725567,1754992251362,-1023.9,0.00019438,2]
[378725568,1754992251372,-1293.26,0.00019438,2]
[378725569,1754992251382,-302.84859387,0.00019467,2]
[378725570,1754992251392,-183.0,0.0001949,2]
[378725571,1754992251402,-460.0,0.00019538,2]
[378725572,1754992251411,-1216.97,0.00019538,2]
[378725573,1754992251421,-460.0,0.00019538,2]
[378725574,1754992251430,-460.0,0.00019538,2]
[378725575,1754992251439,-460.0,0.00019538,2]
[378725576,1754992251449,-602.77,0.00019538,2]
[378725577,1754992251459,-460.0,0.00019538,2]
[378725578,1754992251469,-460.0,0.00019538,2]
[378725579,1754992251478,-460.0,0.00019538,2]
[378725580,1754992251488,-516.48,0.00019538,2]
[378725581,1754992251498,-460.0,0.00019538,2]